fUSD/lending_fUSD_20240614
["ID","MTS","AMOUNT","RATE_DAILY","PERIOD"]
[329465391,1718381461162,-565.53991825,0.00024109,3]
[329465393,1718381461199,-515.75,0.00024109,3]
[329465394,1718381461216,-500.0,0.00024109,3]
[329465395,1718381461246,-1224.47,0.00024109,3]
[329465397,1718381461261,-500.0,0.00024109,3]
[329465399,1718381461293,-500.0,0.00024109,3]
[329465401,1718381461350,-500.0,0.00024109,3]
[329465402,1718381461366,-500.0,0.00024109,3]
[329465404,1718381461383,-541.03174083,0.00024109,3]
[329465406,1718381461447,-543.16475347,0.00024109,3]
[329465408,1718381461459,-499.59095551,0.00024109,3]
[329465410,1718381461485,-1293.92,0.00024109,3]
[329465412,1718381461513,-500.0,0.00024109,3]
[329465414,1718381461548,-1787.68,0.00024109,3]
[329465415,1718381461584,-500.0,0.00024109,3]
[329465416,1718381461612,-1013.49,0.00024109,3]
[329465418,1718381461626,-500.0,0.00024109,3]
[329465420,1718381461645,-500.0,0.00024109,3]
[329465422,1718381461692,-500.0,0.00024109,3]
[329465424,1718381461745,-594.31142519,0.00024109,3]
[329465426,1718381461762,-500.0,0.00024109,3]
[329465427,1718381461789,-500.0,0.00024109,3]
[329465429,1718381461817,-500.0,0.00024109,3]
[329465430,1718381461828,-500.0,0.00024109,3]
[329465431,1718381461850,-155.03724293,0.00024109,3]
[329465433,1718381461868,-611.13,0.00024109,3]
[329465435,1718381461897,-500.0,0.00024109,3]
[329465438,1718381461941,-500.0,0.00024109,3]
[329465440,1718381461979,-1765.72,0.00024109,3]
[329465442,1718381462017,-500.0,0.00024109,3]
[329465443,1718381462045,-2191.89,0.00024109,3]
[329465446,1718381462101,-500.0,0.00024109,3]
[329465448,1718381462136,-790.33,0.00024109,3]
[329465450,1718381462171,-249.42,0.00024109,3]
[329465451,1718381462222,-500.0,0.00024109,3]
[329465453,1718381462256,-500.0,0.00024109,3]
[329465455,1718381462292,-794.16,0.00024109,3]
[329465456,1718381462314,-500.0,0.00024109,3]
[329465459,1718381462349,-683.47,0.00024109,3]
[329465461,1718381462361,-500.0,0.00024109,3]
[329465462,1718381462386,-905.68,0.00024109,3]
[329465464,1718381462432,-500.0,0.00024109,3]
[329465465,1718381462447,-500.0,0.00024109,3]
[329465467,1718381462515,-500.0,0.00024109,3]
[329465470,1718381462599,-500.0,0.00024109,3]
[329465471,1718381462623,-1393.38,0.00024109,3]
[329465474,1718381462645,-500.0,0.00024109,3]
[329465476,1718381462670,-500.0,0.00024109,3]
[329465478,1718381462701,-500.0,0.00024109,3]
[329465480,1718381462721,-500.0,0.00024109,3]
[329465482,1718381462738,-500.0,0.00024109,3]
[329465485,1718381462790,-500.0,0.00024109,3]
[329465487,1718381462824,-500.0,0.00024109,3]
[329465488,1718381462836,-500.0,0.00024109,3]
[329465490,1718381462861,-500.0,0.00024109,3]
[329465491,1718381462896,-599.68119461,0.00024109,3]
[329465492,1718381462956,-500.0,0.00024109,3]
[329465493,1718381462973,-500.0,0.00024109,3]
[329465495,1718381462990,-500.0,0.00024109,3]
[329465496,1718381463010,-500.0,0.00024109,3]
[329465498,1718381463057,-507.49086433,0.00024109,3]
[329465500,1718381463073,-500.0,0.00024109,3]
[329465510,1718381463357,-500.0,0.00024109,3]
[329465511,1718381463378,-580.53,0.00024109,3]
[329465513,1718381463389,-500.0,0.00024109,3]
[329465514,1718381463402,-500.0,0.00024109,3]
[329465516,1718381463430,-500.0,0.00024109,3]
[329465518,1718381463488,-585.19,0.00024109,7]
[329465519,1718381463553,-500.0,0.00024109,3]
[329465522,1718381463595,-500.0,0.00024109,3]
[329465524,1718381463621,-500.0,0.00024109,3]
[329465527,1718381463692,-500.0,0.00024109,3]
[329465529,1718381463737,-500.0,0.00024109,3]
[329465530,1718381463756,-703.08,0.00024109,3]
[329465532,1718381463769,-500.0,0.00024109,3]
[329465534,1718381463783,-500.0,0.00024109,3]
[329465537,1718381463823,-500.0,0.00024109,3]
[329465540,1718381463883,-500.0,0.00024109,3]
[329465542,1718381463916,-500.0,0.00024109,3]
[329465543,1718381463929,-500.0,0.00024109,3]
[329465545,1718381463944,-624.64,0.00024109,3]
[329465547,1718381463970,-500.0,0.00024109,3]
[329465549,1718381464001,-500.0,0.00024109,3]
[329465551,1718381464014,-500.0,0.00024109,3]
[329465553,1718381464026,-500.0,0.00024109,3]
[329465555,1718381464045,-500.0,0.00024109,3]
[329465557,1718381464103,-2424.56,0.00024109,3]
[329465559,1718381464181,-545.02,0.00024109,3]
[329465561,1718381464192,-500.0,0.00024109,3]
[329465562,1718381464256,-500.0,0.00024109,3]
[329465564,1718381464275,-520.91,0.00024109,3]
[329465566,1718381464302,-500.0,0.00024109,3]
[329465568,1718381464343,-521.98470595,0.00024109,3]
[329465571,1718381464381,-500.0,0.00024109,3]
[329465573,1718381464413,-500.0,0.00024109,3]
[329465576,1718381464444,-211.0737104,0.00024109,3]
[329465578,1718381464468,-822.39,0.00024109,3]
[329465579,1718381464493,-500.0,0.00024109,3]
[329465580,1718381464533,-13447.71,0.00024109,3]
[329465582,1718381464587,-500.0,0.00024109,3]
[329465584,1718381464608,-922.7,0.00024109,3]
[329465585,1718381464654,-1078.46,0.00024109,3]
[329465587,1718381464680,-589.4,0.00024109,3]
[329465589,1718381464748,-752.35,0.00024109,3]
[329465590,1718381464807,-500.0,0.00024109,3]
[329465592,1718381464860,-769.8,0.00024109,3]
[329465594,1718381464873,-738.94,0.00024109,3]
[329465596,1718381464890,-500.0,0.00024109,3]
[329465598,1718381464957,-1301.76,0.00024109,3]
[329465601,1718381464988,-645.4,0.00024109,3]
[329465603,1718381465052,-500.0,0.00024109,3]
[329465605,1718381465098,-500.0,0.00024109,3]
[329465608,1718381465150,-500.0,0.00024109,3]
[329465609,1718381465185,-500.0,0.00024109,3]
[329465612,1718381465233,-845.9,0.00024109,3]
[329465613,1718381465285,-859.37,0.00024109,3]
[329465614,1718381465337,-500.0,0.00024109,3]
[329465615,1718381465386,-500.0,0.00024109,3]
[329465616,1718381465505,-500.0,0.00024109,3]
[329465617,1718381465546,-500.0,0.00024109,3]
[329465618,1718381465693,-636.65,0.00024109,3]
[329465619,1718381465707,-645.96,0.00024109,3]
[329465620,1718381465759,-548.66,0.00024109,3]
[329465621,1718381465780,-500.0,0.00024109,3]
[329465622,1718381465796,-1165.9,0.00024109,3]
[329465623,1718381465875,-500.0,0.00024109,3]
[329465624,1718381465887,-500.0,0.00024109,3]
[329465625,1718381465936,-3569.92,0.00024109,3]
[329465626,1718381465950,-500.0,0.00024109,3]
[329465627,1718381465988,-198.57148169,0.00024109,3]
[329465628,1718381466014,-500.0,0.00024109,3]
[329465629,1718381466060,-500.0,0.00024109,3]
[329465630,1718381466083,-500.0,0.00024109,3]
[329465632,1718381466095,-528.59427628,0.00024109,3]
[329465634,1718381466109,-500.0,0.00024109,3]
[329465636,1718381466129,-583.28,0.00024109,3]
[329465638,1718381466158,-4610.9,0.00024109,3]
[329465639,1718381466173,-539.34317778,0.00024109,3]
[329465642,1718381466237,-500.0,0.00024109,3]
[329465643,1718381466289,-823.15,0.00024109,3]
[329465645,1718381466407,-500.0,0.00024109,3]
[329465646,1718381466428,-500.0,0.00024109,3]
[329465648,1718381466457,-500.0,0.00024109,3]
[329465650,1718381466473,-1176.58,0.00024109,3]
[329465651,1718381466497,-500.0,0.00024109,3]
[329465653,1718381466534,-500.0,0.00024109,3]
[329465656,1718381466596,-500.0,0.00024109,3]
[329465658,1718381466613,-500.0,0.00024109,3]
[329465660,1718381466633,-500.0,0.00024109,3]
[329465661,1718381466660,-500.0,0.00024109,3]
[329465663,1718381466678,-594.6,0.00024109,3]
[329465664,1718381466694,-500.0,0.00024109,3]
[329465665,1718381466726,-518.55,0.00024109,3]
[329465666,1718381466771,-755.36,0.00024109,3]
[329465667,1718381466798,-500.0,0.00024109,3]
[329465668,1718381466825,-5329.04,0.00024109,3]
[329465669,1718381466862,-500.0,0.00024109,3]
[329465670,1718381466875,-500.0,0.00024109,3]
[329465671,1718381466936,-500.0,0.00024109,3]
[329465672,1718381467007,-500.0,0.00024109,3]
[329465674,1718381467022,-500.0,0.00024109,3]
[329465675,1718381467044,-500.0,0.00024109,3]
[329465677,1718381467063,-500.0,0.00024109,3]
[329465679,1718381467089,-704.48,0.00024109,3]
[329465680,1718381467109,-500.0,0.00024109,3]
[329465683,1718381467150,-1146.63,0.00024109,3]
[329465686,1718381467187,-500.0,0.00024109,3]
[329465687,1718381467199,-500.0,0.00024109,3]
[329465689,1718381467243,-307.49654253,0.00024109,3]
[329465692,1718381467262,-3166.8,0.00024109,3]
[329465694,1718381467302,-500.0,0.00024109,3]
[329465695,1718381467317,-500.0,0.00024109,3]
[329465698,1718381467346,-6974.38,0.00024109,3]
[329465700,1718381467400,-500.0,0.00024109,3]
[329465702,1718381467416,-500.0,0.00024109,3]
[329465703,1718381467475,-500.0,0.00024109,3]
[329465705,1718381467503,-500.0,0.00024109,3]
[329465707,1718381467531,-561.93,0.00024109,3]
[329465710,1718381467572,-500.0,0.00024109,3]
[329465712,1718381467628,-500.0,0.00024109,3]
[329465714,1718381467666,-718.27,0.00024109,3]
[329465716,1718381467689,-500.0,0.00024109,3]
[329465718,1718381467701,-500.0,0.00024109,3]
[329465720,1718381467761,-11245.28,0.00024109,3]
[329465723,1718381467812,-556.59,0.00024109,3]
[329465727,1718381467939,-2972.07,0.00024109,3]
[329465729,1718381467991,-500.0,0.00024109,3]
[329465731,1718381468029,-500.0,0.00024109,3]
[329465732,1718381468047,-626.67,0.00024109,3]
[329465734,1718381468059,-946.25,0.00024109,3]
[329465735,1718381468073,-500.0,0.00024109,3]
[329465737,1718381468119,-500.0,0.00024109,3]
[329465740,1718381468181,-500.0,0.00024109,3]
[329465741,1718381468205,-500.0,0.00024109,3]
[329465742,1718381468242,-550.11,0.00024109,3]
[329465743,1718381468259,-500.0,0.00024109,3]
[329465745,1718381468292,-643.2193715,0.00024109,3]
[329465747,1718381468304,-500.0,0.00024109,3]
[329465749,1718381468377,-500.0,0.00024109,3]
[329465752,1718381468404,-1585.01,0.00024109,3]
[329465754,1718381468420,-500.0,0.00024109,3]
[329465755,1718381468450,-500.0,0.00024109,3]
[329465757,1718381468503,-536.30061806,0.00024109,3]
[329465758,1718381468546,-500.0,0.00024109,3]
[329465760,1718381468595,-500.0,0.00024109,3]
[329465761,1718381468629,-500.0,0.00024109,3]
[329465763,1718381468654,-1076.42,0.00024109,3]
[329465765,1718381468698,-500.0,0.00024109,3]
[329465767,1718381468740,-563.52,0.00024109,3]
[329465768,1718381468829,-500.0,0.00024109,3]
[329465771,1718381468893,-500.0,0.00024109,3]
[329465774,1718381468989,-3911.01,0.00024109,3]
[329465777,1718381469061,-500.0,0.00024109,3]
[329465778,1718381469133,-500.0,0.00024109,3]
[329465781,1718381469174,-500.0,0.00024109,3]
[329465782,1718381469190,-1696.86,0.00024109,3]
[329465783,1718381469223,-500.0,0.00024109,3]
[329465785,1718381469265,-2287.06,0.00024109,3]
[329465787,1718381469287,-500.0,0.00024109,3]
[329465789,1718381469325,-1978.82,0.00024109,3]
[329465792,1718381469405,-500.0,0.00024109,3]
[329465794,1718381469445,-500.0,0.00024109,3]
[329465796,1718381469524,-687.43,0.00024109,3]
[329465797,1718381469606,-500.0,0.00024109,3]
[329465798,1718381469626,-875.47,0.00024109,3]
[329465799,1718381469694,-604.7,0.00024109,3]
[329465801,1718381469804,-500.0,0.00024109,3]
[329465804,1718381469876,-3451.66,0.00024109,3]
[329465806,1718381469905,-2267.42,0.00024109,3]
[329465809,1718381469922,-1206.77,0.00024109,3]
[329465810,1718381469949,-834.74,0.00024109,3]
[329465811,1718381469984,-1825.91,0.00024109,3]
[329465812,1718381470024,-571.28615476,0.00024109,3]
[329465814,1718381470087,-500.0,0.00024109,3]
[329465816,1718381470233,-500.0,0.00024109,3]
[329465818,1718381470272,-6405.11,0.00024109,3]
[329465820,1718381470331,-4525.0,0.00024109,3]
[329465822,1718381470427,-3473.5,0.00024109,3]
[329465823,1718381470455,-1699.23,0.00024109,3]
[329465825,1718381470485,-500.0,0.00024109,3]
[329465827,1718381470528,-605.97,0.00024109,3]
[329465829,1718381470614,-500.0,0.00024109,3]
[329465830,1718381470626,-500.0,0.00024109,3]
[329465833,1718381470648,-500.0,0.00024109,3]
[329465835,1718381470664,-587.56,0.00024109,3]
[329465836,1718381470705,-446.09020365,0.00024109,3]
[329465847,1718381471020,-53.90979635,0.00024109,3]
[329465848,1718381471044,-500.0,0.00024109,3]
[329465850,1718381471100,-500.0,0.00024109,3]
[329465854,1718381471185,-284.45,0.00024109,3]
[329465855,1718381471202,-500.0,0.00024109,3]
[329465857,1718381471219,-334.15147039,0.00024109,3]
[329465859,1718381471256,-981.04852961,0.00024109,3]
[329465861,1718381471297,-363.73715835,0.00024109,3]
[329465863,1718381471325,-136.26284165,0.00024109,3]
[329465866,1718381471404,-511.50715835,0.00024109,3]
[329465907,1718381472620,-341.65759013,0.00024109,3]
[329465910,1718381472644,-354.4853337,0.00024109,3]
[329465912,1718381472662,-1948.67676488,0.00024109,3]
[329465914,1718381472676,-1851.21315294,0.00024109,3]
[329465917,1718381472726,-500.0,0.00024109,3]
[329465918,1718381472761,-500.0,0.00024109,3]
[329465919,1718381472781,-500.0,0.00024109,3]
[329465921,1718381472794,-500.0,0.00024109,3]
[329465923,1718381472813,-500.0,0.00024109,3]
[329465924,1718381472833,-500.0,0.00024109,3]
[329465926,1718381472850,-1242.56622786,0.00024109,3]
[329465929,1718381472901,-1671.17631581,0.00024109,3]
[329465931,1718381472933,-3693.93006249,0.00024109,3]
[329465932,1718381472969,-2539.25739384,0.00024109,3]
[329465934,1718381472983,-1215.43,0.00024109,3]
[329465936,1718381473006,-822.19,0.00024109,3]
[329465938,1718381473017,-500.0,0.00024109,3]
[329465940,1718381473030,-451.89043185,0.00024109,3]
[329465941,1718381473056,-325.9377404,0.00024109,3]
[329465944,1718381473078,-102.76182775,0.00024109,3]
[329465946,1718381473089,-988.1,0.00024109,3]
[329465948,1718381473133,-681.51,0.00024109,3]
[329465949,1718381473144,-3636.9,0.00024109,3]
[329465951,1718381473156,-614.46,0.00024109,3]
[329465953,1718381473168,-500.0,0.00024109,3]
[329465954,1718381473185,-500.0,0.00024109,3]
[329465956,1718381473199,-500.0,0.00024109,3]
[329465958,1718381473227,-1653.64,0.00024109,3]
[329465960,1718381473245,-1615.11,0.00024109,3]
[329465962,1718381473278,-500.0,0.00024109,3]
[329465964,1718381473290,-1259.9,0.00024109,3]
[329465966,1718381473303,-579.06,0.00024109,3]
[329465967,1718381473315,-1012.84,0.00024109,3]
[329465968,1718381473325,-500.0,0.00024109,3]
[329465969,1718381473336,-500.0,0.00024109,3]
[329465970,1718381473353,-500.0,0.00024109,3]
[329465971,1718381473367,-500.0,0.00024109,3]
[329465972,1718381473390,-500.0,0.00024109,3]
[329465973,1718381473412,-500.0,0.00024109,3]
[329465974,1718381473449,-506.99,0.00024109,3]
[329465975,1718381473473,-4389.15,0.00024109,3]
[329465976,1718381473508,-500.0,0.00024109,3]
[329465978,1718381473544,-736.9,0.00024109,3]
[329465980,1718381473587,-1478.7,0.00024109,3]
[329465982,1718381473634,-192.35091141,0.00024109,3]
[329465983,1718381473648,-1904.77,0.00024109,3]
[329465984,1718381473683,-500.0,0.00024109,3]
[329465986,1718381473725,-500.0,0.00024109,3]
[329465988,1718381473811,-248.7495758,0.00024109,3]
[329465991,1718381473862,-251.2504242,0.00024109,3]
[329465993,1718381473882,-25.1365758,0.00024109,3]
[329465995,1718381473911,-474.8634242,0.00024109,3]
[329465997,1718381473922,-44.97697407,0.00024109,3]
[329465999,1718381473936,-455.02302593,0.00024109,3]
[329466002,1718381473994,-1238.99,0.00024109,3]
[329466004,1718381474013,-3077.54,0.00024109,3]
[329466006,1718381474076,-1222.97857407,0.00024109,3]
[329466008,1718381474101,-553.56974129,0.00024109,3]
[329466010,1718381474125,-464.52000506,0.00024109,3]
[329466013,1718381474138,-875.9,0.00024109,3]
[329466015,1718381474172,-308.00144842,0.00024109,3]
[329466017,1718381474201,-3044.59023116,0.00024109,3]
[329466018,1718381474219,-315.15917767,0.00024109,3]
[329466021,1718381474272,-500.0,0.00024109,3]
[329466023,1718381474329,-500.0,0.00024109,3]
[329466025,1718381474394,-547.08,0.00024109,3]
[329466027,1718381474416,-500.0,0.00024109,3]
[329466029,1718381474438,-612.11,0.00024109,3]
[329466031,1718381474462,-500.0,0.00024109,3]
[329466032,1718381474514,-1182.53,0.00024109,3]
[329466034,1718381474549,-500.0,0.00024109,3]
[329466036,1718381474563,-500.0,0.00024109,3]
[329466038,1718381474597,-500.0,0.00024109,3]
[329466040,1718381474642,-500.0,0.00024109,3]
[329466042,1718381474687,-313.0641787,0.00024109,2]
[329466044,1718381474725,-199.36512887,0.00024109,2]
[329466047,1718381474768,-19711.2213601,0.00024109,2]
[329466049,1718381474779,-1258.98331224,0.00024145,2]
[329466050,1718381474820,-155.25371207,0.00024164,2]
[329466053,1718381474847,-2660.64289929,0.00024166,2]
[329466063,1718381475068,-2697.94031355,0.00024166,2]
[329466065,1718381475089,-30515.85624906,0.00024166,2]
[329466067,1718381475121,-2692.77426467,0.00024176,2]
[329466069,1718381475136,-6596.28060567,0.00024176,2]
[329466071,1718381475154,-577.02751537,0.00024176,2]
[329466073,1718381475181,-1962.8162485,0.00024176,2]
[329466075,1718381475214,-18668.66488369,0.00024176,2]
[329466078,1718381475242,-5376.875944,0.00024176,2]
[329466080,1718381475253,-3563.08787925,0.00024186,2]
[329466082,1718381475312,-909.33187925,0.00024186,2]
[329466084,1718381475337,-1680.37818217,0.00024186,2]
[329466131,1718381476328,-168.81918175,0.00024109,3]
[329466132,1718381476357,-25584.94083061,0.00024186,2]
[329466167,1718381477203,-431.96925012,0.00022529,2]
[329466169,1718381477230,-671.87819983,0.00022529,2]
[329466172,1718381477251,-8896.15255005,0.00022529,2]
[329466174,1718381477269,-364.81510677,0.00024098,10]
[329466176,1718381477289,-500.0,0.00024109,3]
[329466178,1718381477317,-496.53728161,0.00024109,3]
[329466180,1718381477331,-63880.50393586,0.00024186,2]
[329466183,1718381477350,-57941.19112568,0.00024189,2]
[329466184,1718381477369,-908.61652581,0.00024189,2]
[329466186,1718381477385,-284.2125,0.00024189,2]
[329466189,1718381477421,-1542.7683886,0.00024189,2]
[329466191,1718381477438,-705.0,0.00024189,2]
[329466193,1718381477451,-696.95,0.00024189,2]
[329466195,1718381477475,-33539.50416705,0.00024189,2]
[329466197,1718381477501,-1377.0,0.000242,2]
[329466199,1718381477516,-155.25371207,0.00024211,2]
[329466201,1718381477548,-150.0,0.00024219,2]
[329466202,1718381477581,-1000.0,0.0002422,2]
[329466205,1718381477599,-95618.24270714,0.0002423,2]
[329466206,1718381477616,-180.0,0.0002423,2]
[329466208,1718381477648,-9289.17986617,0.00024243,2]
[329466210,1718381477665,-1346.35809449,0.00024243,2]
[329466212,1718381477697,-8027.63642451,0.00024243,2]
[329466214,1718381477729,-574.49992994,0.00024243,2]
[329466217,1718381477753,-646.11840695,0.00024243,2]
[329466218,1718381477780,-1000.54103258,0.00024243,2]
[329466220,1718381477801,-697.00767359,0.00024243,2]
[329466221,1718381477823,-8540.60698371,0.00024243,2]
[329466222,1718381477840,-651.46640926,0.00024243,2]
[329466223,1718381477858,-64844.82788594,0.00024243,2]
[329466224,1718381477888,-417.77,0.00024247,2]
[329466226,1718381477900,-417.77,0.00024247,2]
[329466228,1718381477914,-417.77,0.00024247,2]
[329466230,1718381477929,-417.77,0.00024247,2]
[329466232,1718381477942,-417.77,0.00024247,2]
[329466234,1718381477954,-440.48,0.00024247,2]
[329466236,1718381477965,-4501.67286714,0.00024257,2]
[329466238,1718381477977,-155.0,0.00024259,2]
[329466240,1718381477989,-200.0,0.0002426,2]
[329466243,1718381478017,-58343.94959285,0.00024262,2]
[329466245,1718381478055,-484.26965233,0.00024262,2]
[329466247,1718381478104,-619.69677273,0.00024262,2]
[329466248,1718381478126,-6602.00000001,0.00024262,2]
[329466250,1718381478161,-774.96751853,0.00024262,2]
[329466252,1718381478212,-1655.90047631,0.00024262,2]
[329466254,1718381478242,-849.99999997,0.00024262,2]
[329466256,1718381478257,-894.62877208,0.00024262,2]
[329466258,1718381478272,-4420.25721912,0.00024262,2]
[329466260,1718381478293,-1711.71000089,0.00024262,2]
[329466293,1718381478997,-1270.18852319,0.00024098,2]
[329466295,1718381479013,-500.0,0.00024109,3]
[329466297,1718381479045,-440.56147756,0.00024262,2]
[329466379,1718381483383,-330.42782796,0.00023989,2]
[329466380,1718381483414,-6254.47217203,0.00024097,2]
[329466381,1718381483438,-63734.31764485,0.00024097,2]
[329466382,1718381483456,-364.67474478,0.00024097,2]
[329466383,1718381483467,-537.72037607,0.00024098,2]
[329466384,1718381483487,-500.0,0.00024109,3]
[329466385,1718381483519,-648.1,0.00024109,3]
[329466386,1718381483545,-33584.13,0.00024109,3]
[329466387,1718381483560,-500.0,0.00024109,3]
[329466388,1718381483592,-18820.30122476,0.00024262,2]
[329466389,1718381483630,-151.0,0.00024262,7]
[329466390,1718381483651,-151.0,0.00024262,7]
[329466391,1718381483663,-151.0,0.00024262,7]
[329466392,1718381483696,-295.106574,0.00024262,7]
[329466393,1718381483712,-151.0,0.00024262,6]
[329466394,1718381483761,-151.0,0.00024262,7]
[329466395,1718381483773,-374.21330883,0.00024271,2]
[329466396,1718381484008,-150.0,0.00024272,2]
[329466397,1718381484021,-423.01,0.00024274,2]
[329466398,1718381484035,-150.0,0.00024274,2]
[329466399,1718381484056,-150.0,0.00024274,2]
[329466400,1718381484085,-353.74,0.00024274,2]
[329466401,1718381484117,-150.0,0.00024274,2]
[329466402,1718381484144,-164.35,0.00024274,2]
[329466403,1718381484172,-157.23,0.00024274,2]
[329466404,1718381484186,-166.21,0.00024274,2]
[329466405,1718381484201,-526.85,0.00024274,2]
[329466406,1718381484213,-150.0,0.00024274,2]
[329466407,1718381484232,-353.74,0.00024274,2]
[329466408,1718381484248,-164.35,0.00024274,2]
[329466409,1718381484262,-526.85,0.00024274,2]
[329466410,1718381484292,-150.0,0.00024274,2]
[329466411,1718381484316,-150.0,0.00024274,2]
[329466412,1718381484377,-150.0,0.00024274,2]
[329466413,1718381484410,-423.01,0.00024274,2]
[329466414,1718381484446,-526.28,0.00024274,2]
[329466415,1718381484461,-353.74,0.00024274,2]
[329466416,1718381484484,-150.0,0.00024274,2]
[329466417,1718381484499,-164.35,0.00024274,2]
[329466418,1718381484526,-150.0,0.00024274,2]
[329466419,1718381484569,-150.0,0.00024274,2]
[329466420,1718381484591,-423.01,0.00024274,2]
[329466421,1718381484640,-353.74,0.00024274,2]
[329466422,1718381484665,-150.0,0.00024274,2]
[329466423,1718381484683,-150.0,0.00024274,2]
[329466424,1718381484708,-164.35,0.00024274,2]
[329466425,1718381484734,-155.0,0.00024278,2]
[329466426,1718381484750,-201.12970365,0.00024278,2]
[329466427,1718381484775,-307.14978371,0.00024278,2]
[329466428,1718381484795,-5000.0,0.00024278,2]
[329466429,1718381484817,-164.332339,0.00024278,7]
[329466430,1718381484839,-13994.9350303,0.00024279,2]
[329466431,1718381484851,-1500.0,0.00024283,2]
[329466432,1718381484865,-507.97763709,0.00024283,2]
[329466433,1718381484878,-4374.37860586,0.00024283,2]
[329466434,1718381484896,-95618.24270714,0.00024293,2]
[329466435,1718381484916,-489.0,0.000243,7]
[329466436,1718381484932,-489.0,0.000243,7]
[329466437,1718381484987,-305.0,0.000243,2]
[329466438,1718381485004,-151.1375544,0.00024308,2]
[329466439,1718381485017,-154.30985408,0.00024318,2]
[329466440,1718381485028,-150.0,0.00024331,2]
[329466441,1718381485039,-200.0,0.00024338,2]
[329466442,1718381485050,-1000.0,0.00024338,2]
[329466443,1718381485078,-500.0,0.00024338,2]
[329466444,1718381485112,-200.0,0.00024338,2]
[329466445,1718381485125,-500.0,0.00024338,2]
[329466446,1718381485136,-500.0,0.00024338,2]
[329466447,1718381485152,-500.0,0.00024338,2]
[329466448,1718381485173,-500.0,0.00024338,2]
[329466449,1718381485196,-500.0,0.00024338,2]
[329466450,1718381485225,-500.0,0.00024338,2]
[329466451,1718381485245,-500.0,0.00024338,2]
[329466452,1718381485259,-500.0,0.00024338,2]
[329466453,1718381485277,-500.0,0.00024338,2]
[329466454,1718381485309,-500.0,0.00024338,2]
[329466455,1718381485321,-500.0,0.00024338,2]
[329466456,1718381485351,-500.0,0.00024338,2]
[329466457,1718381485364,-500.0,0.00024338,2]
[329466458,1718381485390,-500.0,0.00024338,2]
[329466459,1718381485406,-500.0,0.00024338,2]
[329466460,1718381485423,-500.0,0.00024338,2]
[329466461,1718381485439,-500.0,0.00024338,2]
[329466462,1718381485464,-500.0,0.00024338,2]
[329466463,1718381485498,-500.0,0.00024338,2]
[329466464,1718381485532,-500.0,0.00024338,2]
[329466465,1718381485548,-500.0,0.00024338,2]
[329466466,1718381485563,-500.0,0.00024338,2]
[329466467,1718381485581,-500.0,0.00024338,2]
[329466468,1718381485629,-500.0,0.00024338,2]
[329466469,1718381485642,-302.23252059,0.00024341,2]
[329466470,1718381485660,-1500.0,0.00024354,2]
[329466471,1718381485676,-4501.67286714,0.00024362,2]
[329466472,1718381485692,-153.03028187,0.00024369,2]
[329466473,1718381485708,-155.639262,0.00024373,7]
[329466474,1718381485734,-153.58,0.00024378,2]
[329466475,1718381485774,-150.0,0.00024379,2]
[329466476,1718381485787,-500.0,0.00024379,3]
[329466477,1718381485820,-246.78969473,0.00024382,2]